[Event "Late-Titled-Tuesday-Blitz-May-28-2024"]
[Site "Chess.com"]
[Date "2024.05.28"]
[Round "1"]
[White "CarlosjPineror"]
[Black "Dzidzik2203"]
[Result "1-0"]
[WhiteElo "2774"]
[BlackElo "2442"]
[TimeControl "180+1"]
[EndTime "14:05:13 PDT"]
[Termination "CarlosjPineror won by resignation"]

1. e4 {[%clk 0:03:00.9]} 1... c5 {[%clk 0:02:58.2]} 2. Nf3 {[%clk 0:03:00.9]}
2... d6 {[%clk 0:02:58.5]} 3. d4 {[%clk 0:03:01.3]} 3... cxd4 {[%clk 0:02:59.3]}
4. Nxd4 {[%clk 0:03:02.1]} 4... Nf6 {[%clk 0:02:59.6]} 5. Nc3 {[%clk 0:03:02.7]}
5... a6 {[%clk 0:03:00]} 6. Bg5 {[%clk 0:03:03]} 6... e6 {[%clk 0:03:00.5]} 7.
f4 {[%clk 0:03:03.4]} 7... Be7 {[%clk 0:03:01]} 8. Qe2 {[%clk 0:03:03.9]} 8...
h6 {[%clk 0:02:59.7]} 9. Bh4 {[%clk 0:03:03.2]} 9... Nxe4 {[%clk 0:02:59.9]} 10.
Bxe7 {[%clk 0:03:03.3]} 10... Nxc3 {[%clk 0:02:59]} 11. Qc4 {[%clk 0:03:04]}
11... Kxe7 {[%clk 0:02:33.5]} 12. Qxc3 {[%clk 0:03:04.3]} 12... Nc6 {[%clk
0:02:29.3]} 13. Nxc6+ {[%clk 0:02:37.4]} 13... bxc6 {[%clk 0:02:28.8]} 14. Qxg7
{[%clk 0:02:37.8]} 14... Rb8 {[%clk 0:02:25.4]} 15. O-O-O {[%clk 0:02:29.3]}
15... Rg8 {[%clk 0:02:15.6]} 16. Qxh6 {[%clk 0:02:05.4]} 16... Qa5 {[%clk
0:01:57.1]} 17. Qh4+ {[%clk 0:02:05.6]} 17... Kd7 {[%clk 0:01:45.7]} 18. Bc4
{[%clk 0:01:58.8]} 18... d5 {[%clk 0:01:00.8]} 19. Bb3 {[%clk 0:01:50]} 19...
Qb6 {[%clk 0:00:50.6]} 20. g3 {[%clk 0:01:40.6]} 20... a5 {[%clk 0:00:48.6]} 21.
a4 {[%clk 0:01:39.5]} 21... Ba6 {[%clk 0:00:36.5]} 22. Qf6 {[%clk 0:01:38.2]}
22... Rgf8 {[%clk 0:00:35]} 23. Rhe1 {[%clk 0:01:31.2]} 23... Bc4 {[%clk
0:00:26.4]} 24. Bxc4 {[%clk 0:01:29.1]} 1-0

[Event "Late-Titled-Tuesday-Blitz-May-28-2024"]
[Site "Chess.com"]
[Date "2024.05.28"]
[Round "1"]
[White "Ramosha"]
[Black "Alina_Gumerovna"]
[Result "1-0"]
[WhiteElo "2563"]
[BlackElo "2178"]
[TimeControl "180+1"]
[EndTime "14:05:13 PDT"]
[Termination "Ramosha won on time"]

1. e4 {[%clk 0:03:00.9]} 1... e5 {[%clk 0:02:58.9]} 2. Nf3 {[%clk 0:03:00.7]}
2... Nf6 {[%clk 0:02:59.1]} 3. Nxe5 {[%clk 0:03:00.6]} 3... d6 {[%clk
0:02:59.3]} 4. Nf3 {[%clk 0:03:01]} 4... Nxe4 {[%clk 0:03:00]} 5. Nc3 {[%clk
0:03:01.6]} 5... Nxc3 {[%clk 0:02:59.8]} 6. dxc3 {[%clk 0:03:02.5]} 6... Be7
{[%clk 0:03:00.7]} 7. Bf4 {[%clk 0:03:02.5]} 7... Nd7 {[%clk 0:03:00.8]} 8. Bc4
{[%clk 0:03:02.7]} 8... O-O {[%clk 0:03:00.8]} 9. Qd2 {[%clk 0:03:02.7]} 9...
Nb6 {[%clk 0:02:36.2]} 10. Bd3 {[%clk 0:03:01.8]} 10... c5 {[%clk 0:02:30]} 11.
O-O-O {[%clk 0:03:00.8]} 11... Be6 {[%clk 0:02:01]} 12. a3 {[%clk 0:02:59.6]}
12... Nd5 {[%clk 0:01:59.8]} 13. Bg3 {[%clk 0:02:56.7]} 13... Qa5 {[%clk
0:01:52.7]} 14. c4 {[%clk 0:02:53.8]} 14... Qxd2+ {[%clk 0:01:51.5]} 15. Rxd2
{[%clk 0:02:54.7]} 15... Nb6 {[%clk 0:01:45.6]} 16. b3 {[%clk 0:02:53.9]} 16...
a5 {[%clk 0:01:34.1]} 17. a4 {[%clk 0:02:53.6]} 17... Rad8 {[%clk 0:01:29.8]}
18. Re1 {[%clk 0:02:49.1]} 18... Bf6 {[%clk 0:01:22]} 19. Ree2 {[%clk
0:02:43.3]} 19... Bg4 {[%clk 0:01:08.1]} 20. Be4 {[%clk 0:02:40.4]} 20... Bxf3
{[%clk 0:00:52.3]} 21. gxf3 {[%clk 0:02:39.2]} 21... Bd4 {[%clk 0:00:38.6]} 22.
Bxb7 {[%clk 0:02:35.6]} 22... Rfe8 {[%clk 0:00:36.1]} 23. Be4 {[%clk 0:02:28.4]}
23... g6 {[%clk 0:00:30.8]} 24. Bc6 {[%clk 0:02:27.5]} 24... Re6 {[%clk
0:00:18]} 25. Rxe6 {[%clk 0:02:23.4]} 25... fxe6 {[%clk 0:00:18.9]} 26. c3
{[%clk 0:02:16.4]} 26... Bxc3 {[%clk 0:00:08.9]} 27. Rxd6 {[%clk 0:02:16.4]}
27... Rxd6 {[%clk 0:00:06.1]} 28. Bxd6 {[%clk 0:02:17.3]} 28... Bd4 {[%clk
0:00:03.1]} 29. Bc7 {[%clk 0:02:16.9]} 29... Nc8 {[%clk 0:00:02.2]} 30. Bxa5
{[%clk 0:02:17]} 30... Bxf2 {[%clk 0:00:01.7]} 31. Bc7 {[%clk 0:02:13.9]} 31...
Ne7 {[%clk 0:00:01.8]} 32. Be4 {[%clk 0:02:14]} 32... Bd4 {[%clk 0:00:01.2]} 33.
a5 {[%clk 0:02:14]} 1-0

[Event "Late-Titled-Tuesday-Blitz-May-28-2024"]
[Site "Chess.com"]
[Date "2024.05.28"]
[Round "1"]
[White "lamomiajunior"]
[Black "David_ATM"]
[Result "1-0"]
[WhiteElo "2747"]
[BlackElo "2424"]
[TimeControl "180+1"]
[EndTime "14:05:17 PDT"]
[Termination "lamomiajunior won by resignation"]

1. e4 {[%clk 0:03:00.9]} 1... e5 {[%clk 0:03:00]} 2. Nf3 {[%clk 0:03:00.8]} 2...
Nc6 {[%clk 0:03:00.9]} 3. Bc4 {[%clk 0:03:00.6]} 3... Bc5 {[%clk 0:02:58]} 4. c3
{[%clk 0:03:00.4]} 4... Nf6 {[%clk 0:02:57.5]} 5. d3 {[%clk 0:03:00.6]} 5... d6
{[%clk 0:02:56.7]} 6. Bg5 {[%clk 0:03:00.7]} 6... a6 {[%clk 0:02:54]} 7. Nbd2
{[%clk 0:02:57.1]} 7... h6 {[%clk 0:02:53.8]} 8. Bh4 {[%clk 0:02:57]} 8... Ba7
{[%clk 0:02:48.1]} 9. a4 {[%clk 0:02:56.1]} 9... g5 {[%clk 0:02:45.2]} 10. Bg3
{[%clk 0:02:55.8]} 10... Bg4 {[%clk 0:02:43.5]} 11. Qc2 {[%clk 0:02:51.5]} 11...
Qd7 {[%clk 0:02:38.4]} 12. b4 {[%clk 0:02:51.5]} 12... Ne7 {[%clk 0:02:28.2]}
13. O-O {[%clk 0:02:40.7]} 13... Ng6 {[%clk 0:02:26.6]} 14. Kh1 {[%clk
0:02:36.2]} 14... O-O {[%clk 0:02:24.5]} 15. Bb3 {[%clk 0:02:32.1]} 15... Be6
{[%clk 0:02:21.8]} 16. Nc4 {[%clk 0:02:30.6]} 16... Nh5 {[%clk 0:02:11.6]} 17.
Rad1 {[%clk 0:02:22.2]} 17... Kg7 {[%clk 0:02:10.2]} 18. d4 {[%clk 0:02:21.6]}
18... Bxc4 {[%clk 0:02:06.8]} 19. Bxc4 {[%clk 0:02:21.7]} 19... Qe7 {[%clk
0:02:01.8]} 20. b5 {[%clk 0:02:11.1]} 20... axb5 {[%clk 0:02:00.2]} 21. axb5
{[%clk 0:02:11.6]} 21... Bb6 {[%clk 0:01:58]} 22. Bd5 {[%clk 0:02:10.7]} 22...
Ra7 {[%clk 0:01:52.5]} 23. dxe5 {[%clk 0:02:09.6]} 23... dxe5 {[%clk 0:01:48.1]}
24. Nd2 {[%clk 0:02:09.8]} 24... Nhf4 {[%clk 0:01:29.9]} 25. Nc4 {[%clk
0:02:08.2]} 25... Bc5 {[%clk 0:00:54.9]} 26. Ne3 {[%clk 0:02:05.1]} 26... Bxe3
{[%clk 0:00:51.7]} 27. fxe3 {[%clk 0:02:06]} 27... Nxd5 {[%clk 0:00:39.8]} 28.
exd5 {[%clk 0:02:06.1]} 28... e4 {[%clk 0:00:38.2]} 29. d6 {[%clk 0:02:04.2]}
29... Qe6 {[%clk 0:00:20.2]} 30. dxc7 {[%clk 0:02:04.4]} 30... Rc8 {[%clk
0:00:20.1]} 31. c4 {[%clk 0:02:03.5]} 31... b6 {[%clk 0:00:14.5]} 32. Qc3+
{[%clk 0:02:02.9]} 32... f6 {[%clk 0:00:13.3]} 33. Rd6 {[%clk 0:02:01.4]} 33...
Qe7 {[%clk 0:00:11.6]} 34. Rdxf6 {[%clk 0:02:01.1]} 34... Kh7 {[%clk 0:00:07.7]}
35. Rf7+ {[%clk 0:02:01.3]} 1-0

[Event "Late-Titled-Tuesday-Blitz-May-28-2024"]
[Site "Chess.com"]
[Date "2024.05.28"]
[Round "1"]
[White "almaguerjm"]
[Black "The_Machine04"]
[Result "0-1"]
[WhiteElo "2458"]
[BlackElo "2818"]
[TimeControl "180+1"]
[EndTime "14:05:26 PDT"]
[Termination "The_Machine04 won by resignation"]

1. e4 {[%clk 0:03:00.9]} 1... d6 {[%clk 0:03:00.1]} 2. Nf3 {[%clk 0:02:59.8]}
2... Nf6 {[%clk 0:03:00.6]} 3. d3 {[%clk 0:02:56]} 3... e5 {[%clk 0:03:00.7]} 4.
g3 {[%clk 0:02:55.7]} 4... c5 {[%clk 0:03:00.8]} 5. Bg2 {[%clk 0:02:56.2]} 5...
Nc6 {[%clk 0:03:01.4]} 6. Nbd2 {[%clk 0:02:55.5]} 6... Be6 {[%clk 0:03:02]} 7.
a4 {[%clk 0:02:55.7]} 7... Be7 {[%clk 0:03:02.2]} 8. O-O {[%clk 0:02:55.7]} 8...
O-O {[%clk 0:03:01.4]} 9. h3 {[%clk 0:02:42.9]} 9... d5 {[%clk 0:03:01.3]} 10.
Ng5 {[%clk 0:02:40.9]} 10... Bc8 {[%clk 0:02:58.7]} 11. exd5 {[%clk 0:02:37.5]}
11... Nxd5 {[%clk 0:02:59.6]} 12. Ngf3 {[%clk 0:02:36.8]} 12... Be6 {[%clk
0:02:55.5]} 13. Re1 {[%clk 0:02:36.3]} 13... f6 {[%clk 0:02:54.8]} 14. Ne4
{[%clk 0:02:28]} 14... Qd7 {[%clk 0:02:53.7]} 15. Kh2 {[%clk 0:02:27.6]} 15...
Rac8 {[%clk 0:02:52.2]} 16. c3 {[%clk 0:02:26.6]} 16... Rfd8 {[%clk 0:02:51.6]}
17. Qc2 {[%clk 0:02:24.3]} 17... Bf8 {[%clk 0:02:48.5]} 18. Bd2 {[%clk
0:02:19.5]} 18... Nde7 {[%clk 0:02:45.8]} 19. Rad1 {[%clk 0:02:18.1]} 19... b6
{[%clk 0:02:45.5]} 20. Bc1 {[%clk 0:02:16]} 20... Nf5 {[%clk 0:02:43.3]} 21. Bf1
{[%clk 0:02:03.3]} 21... Na5 {[%clk 0:02:42.2]} 22. Nfd2 {[%clk 0:02:03]} 22...
Qf7 {[%clk 0:02:27.4]} 23. Re2 {[%clk 0:01:42.9]} 23... Rd7 {[%clk 0:02:20.2]}
24. Rde1 {[%clk 0:01:13.7]} 24... Rcd8 {[%clk 0:02:19]} 25. Nc4 {[%clk
0:01:11.2]} 25... Nxc4 {[%clk 0:02:15]} 26. dxc4 {[%clk 0:01:11.3]} 26... Bxc4
{[%clk 0:02:15.1]} 27. Rd2 {[%clk 0:01:11.8]} 27... Bxf1 {[%clk 0:02:08.1]} 28.
Rxd7 {[%clk 0:01:10.2]} 28... Qxd7 {[%clk 0:02:06.2]} 29. Rxf1 {[%clk
0:01:09.1]} 29... Qd3 {[%clk 0:02:06.1]} 30. Qxd3 {[%clk 0:01:04]} 30... Rxd3
{[%clk 0:02:07]} 31. Kg2 {[%clk 0:00:49]} 31... Nd6 {[%clk 0:02:06.7]} 32. Nxd6
{[%clk 0:00:45]} 32... Bxd6 {[%clk 0:02:06.6]} 33. Re1 {[%clk 0:00:42.1]} 33...
Kf7 {[%clk 0:02:05.5]} 34. Be3 {[%clk 0:00:41.7]} 34... Ke6 {[%clk 0:02:04.9]}
35. Kf3 {[%clk 0:00:42]} 35... f5 {[%clk 0:02:01.9]} 36. Ke2 {[%clk 0:00:42.2]}
36... c4 {[%clk 0:02:01.4]} 37. Ra1 {[%clk 0:00:35.8]} 37... f4 {[%clk
0:02:01.2]} 38. gxf4 {[%clk 0:00:32.3]} 38... exf4 {[%clk 0:02:02.1]} 39. Bd4
{[%clk 0:00:32]} 39... f3+ {[%clk 0:02:02.6]} 40. Ke1 {[%clk 0:00:28.7]} 40...
Be5 {[%clk 0:02:02.7]} 41. Bxe5 {[%clk 0:00:25.2]} 41... Kxe5 {[%clk 0:02:03.6]}
42. a5 {[%clk 0:00:25.9]} 42... b5 {[%clk 0:02:03.7]} 43. a6 {[%clk 0:00:26.5]}
43... Kd5 {[%clk 0:02:03.7]} 44. Rd1 {[%clk 0:00:21.8]} 44... Rxd1+ {[%clk
0:02:02.2]} 45. Kxd1 {[%clk 0:00:22.4]} 45... Ke4 {[%clk 0:02:02.5]} 46. Kd2
{[%clk 0:00:20.5]} 46... g5 {[%clk 0:02:02.1]} 0-1

[Event "Late-Titled-Tuesday-Blitz-May-28-2024"]
[Site "Chess.com"]
[Date "2024.05.28"]
[Round "1"]
[White "Cambek64"]
[Black "TigrVShlyape"]
[Result "0-1"]
[WhiteElo "2500"]
[BlackElo "2919"]
[TimeControl "180+1"]
[EndTime "14:05:29 PDT"]
[Termination "TigrVShlyape won by resignation"]

1. d4 {[%clk 0:02:47.5]} 1... f5 {[%clk 0:02:57.5]} 2. g3 {[%clk 0:02:42.9]}
2... Nf6 {[%clk 0:02:57]} 3. Bg2 {[%clk 0:02:43.3]} 3... g6 {[%clk 0:02:57.5]}
4. c3 {[%clk 0:02:40.5]} 4... Bg7 {[%clk 0:02:57.6]} 5. Nf3 {[%clk 0:02:34.2]}
5... O-O {[%clk 0:02:53.9]} 6. Qb3+ {[%clk 0:02:32.6]} 6... e6 {[%clk
0:02:53.5]} 7. Bg5 {[%clk 0:02:25]} 7... Nc6 {[%clk 0:02:50.1]} 8. Nbd2 {[%clk
0:02:21.8]} 8... h6 {[%clk 0:02:45.5]} 9. Bxf6 {[%clk 0:02:21]} 9... Qxf6 {[%clk
0:02:45.7]} 10. e4 {[%clk 0:02:16.8]} 10... fxe4 {[%clk 0:02:41.6]} 11. Nxe4
{[%clk 0:02:15.3]} 11... Qf7 {[%clk 0:02:41.5]} 12. h4 {[%clk 0:02:07.8]} 12...
d5 {[%clk 0:02:40.4]} 13. Nc5 {[%clk 0:01:59.3]} 13... b6 {[%clk 0:02:38.8]} 14.
Nd3 {[%clk 0:01:58.3]} 14... Ba6 {[%clk 0:02:36]} 15. O-O-O {[%clk 0:01:47.7]}
15... Bxd3 {[%clk 0:02:31.5]} 16. Rxd3 {[%clk 0:01:46.3]} 16... Na5 {[%clk
0:02:29.6]} 17. Qc2 {[%clk 0:01:44.8]} 17... c5 {[%clk 0:02:29.9]} 18. Kb1
{[%clk 0:01:42.9]} 18... Nc6 {[%clk 0:02:20.9]} 19. dxc5 {[%clk 0:01:25.8]}
19... bxc5 {[%clk 0:02:20.3]} 20. Re1 {[%clk 0:01:23.1]} 20... Rab8 {[%clk
0:02:19.7]} 21. Re2 {[%clk 0:00:47.7]} 21... Rb6 {[%clk 0:02:17.7]} 22. Bh3
{[%clk 0:00:39]} 22... Re8 {[%clk 0:02:14.4]} 23. Rde3 {[%clk 0:00:32.3]} 23...
e5 {[%clk 0:02:13.4]} 24. Qa4 {[%clk 0:00:28]} 24... c4 {[%clk 0:02:03.3]} 25.
Rd2 {[%clk 0:00:18.8]} 25... e4 {[%clk 0:02:00.9]} 26. Nd4 {[%clk 0:00:14.1]}
26... Nxd4 {[%clk 0:01:59.8]} 27. cxd4 {[%clk 0:00:14.5]} 27... Reb8 {[%clk
0:01:58.1]} 28. Ra3 {[%clk 0:00:12.1]} 28... a6 {[%clk 0:01:53]} 29. Qa5 {[%clk
0:00:11.4]} 29... Bf8 {[%clk 0:01:49.3]} 30. Re3 {[%clk 0:00:09]} 30... Bb4
{[%clk 0:01:48.5]} 0-1

[Event "Late-Titled-Tuesday-Blitz-May-28-2024"]
[Site "Chess.com"]
[Date "2024.05.28"]
[Round "1"]
[White "EsmeraldasAnderson03"]
[Black "stollenmonster"]
[Result "0-1"]
[WhiteElo "2468"]
[BlackElo "2853"]
[TimeControl "180+1"]
[EndTime "14:05:29 PDT"]
[Termination "stollenmonster won by resignation"]

1. d4 {[%clk 0:02:45.8]} 1... Nf6 {[%clk 0:02:58.8]} 2. c4 {[%clk 0:02:32]} 2...
e6 {[%clk 0:02:59.3]} 3. Nc3 {[%clk 0:02:31.9]} 3... d5 {[%clk 0:02:59.5]} 4.
cxd5 {[%clk 0:02:31.6]} 4... Nxd5 {[%clk 0:03:00.4]} 5. e4 {[%clk 0:02:28.9]}
5... Nxc3 {[%clk 0:03:00.1]} 6. bxc3 {[%clk 0:02:29.8]} 6... b6 {[%clk
0:03:00.6]} 7. Bd3 {[%clk 0:02:16.9]} 7... Bb7 {[%clk 0:02:59.7]} 8. Ne2 {[%clk
0:02:06.5]} 8... Nd7 {[%clk 0:02:58.9]} 9. O-O {[%clk 0:02:06.9]} 9... Be7
{[%clk 0:02:58.8]} 10. Be3 {[%clk 0:02:06.5]} 10... c5 {[%clk 0:02:57.4]} 11.
Ng3 {[%clk 0:01:57.7]} 11... O-O {[%clk 0:02:55.8]} 12. e5 {[%clk 0:01:57.6]}
12... Re8 {[%clk 0:02:53.7]} 13. Qg4 {[%clk 0:01:38.6]} 13... Nxe5 {[%clk
0:02:43.6]} 14. Bxh7+ {[%clk 0:01:28.6]} 14... Kxh7 {[%clk 0:02:44.5]} 15. dxe5
{[%clk 0:01:29]} 15... Qd3 {[%clk 0:02:34]} 16. Nh5 {[%clk 0:01:18.3]} 16... Qg6
{[%clk 0:02:22.8]} 17. Qh3 {[%clk 0:01:17.3]} 17... Kg8 {[%clk 0:02:13.8]} 18.
Ng3 {[%clk 0:00:42.4]} 18... Red8 {[%clk 0:02:09.4]} 19. Rad1 {[%clk 0:00:41.2]}
19... Bd5 {[%clk 0:02:00.9]} 20. a4 {[%clk 0:00:37]} 20... Bb3 {[%clk 0:01:58]}
21. Rxd8+ {[%clk 0:00:34.9]} 21... Rxd8 {[%clk 0:01:58.9]} 22. Ne2 {[%clk
0:00:32.3]} 22... Bxa4 {[%clk 0:01:46]} 23. Nf4 {[%clk 0:00:27.9]} 23... Qh7
{[%clk 0:01:37.6]} 24. Qg4 {[%clk 0:00:14.2]} 24... Bc6 {[%clk 0:01:33.2]} 25.
Nxe6 {[%clk 0:00:13.1]} 25... Bd7 {[%clk 0:01:33.1]} 26. Rd1 {[%clk 0:00:10.1]}
26... Bxe6 {[%clk 0:01:32.5]} 27. Rxd8+ {[%clk 0:00:10.7]} 27... Bxd8 {[%clk
0:01:33.1]} 28. Qf3 {[%clk 0:00:11.5]} 28... Qb1+ {[%clk 0:01:31.6]} 0-1

[Event "Late-Titled-Tuesday-Blitz-May-28-2024"]
[Site "Chess.com"]
[Date "2024.05.28"]
[Round "1"]
[White "jamengrand"]
[Black "secretworker2027"]
[Result "0-1"]
[WhiteElo "2330"]
[BlackElo "2615"]
[TimeControl "180+1"]
[EndTime "14:05:30 PDT"]
[Termination "secretworker2027 won by resignation"]

1. e4 {[%clk 0:03:00.9]} 1... c5 {[%clk 0:02:59.1]} 2. Nf3 {[%clk 0:02:59.4]}
2... d6 {[%clk 0:02:55.7]} 3. d4 {[%clk 0:02:50.6]} 3... cxd4 {[%clk 0:02:55.9]}
4. Nxd4 {[%clk 0:02:50.5]} 4... Nc6 {[%clk 0:02:55.4]} 5. c4 {[%clk 0:02:49.3]}
5... e5 {[%clk 0:02:51.8]} 6. Nc2 {[%clk 0:02:48.3]} 6... Nf6 {[%clk 0:02:51.3]}
7. Nc3 {[%clk 0:02:48.1]} 7... g6 {[%clk 0:02:47.8]} 8. Be2 {[%clk 0:02:47.4]}
8... Bg7 {[%clk 0:02:47.9]} 9. Be3 {[%clk 0:02:44.4]} 9... O-O {[%clk
0:02:47.8]} 10. h4 {[%clk 0:02:43.3]} 10... h5 {[%clk 0:02:46.9]} 11. Bg5 {[%clk
0:02:20.3]} 11... Be6 {[%clk 0:02:46]} 12. Nd5 {[%clk 0:02:14.8]} 12... Bxd5
{[%clk 0:02:45.9]} 13. cxd5 {[%clk 0:02:14.8]} 13... Ne7 {[%clk 0:02:43.9]} 14.
Qd3 {[%clk 0:01:48.1]} 14... Rc8 {[%clk 0:02:41.7]} 15. O-O {[%clk 0:01:36.7]}
15... Qb6 {[%clk 0:02:36.2]} 16. Rab1 {[%clk 0:01:28.1]} 16... Rfe8 {[%clk
0:02:26.8]} 17. Ne3 {[%clk 0:01:26.6]} 17... Qd4 {[%clk 0:02:23.7]} 18. f3
{[%clk 0:01:06.3]} 18... Nh7 {[%clk 0:02:17.7]} 19. Bxe7 {[%clk 0:01:02.1]}
19... Rxe7 {[%clk 0:02:18.6]} 20. Qxd4 {[%clk 0:00:55.5]} 20... exd4 {[%clk
0:02:18.1]} 21. Nc4 {[%clk 0:00:56.2]} 21... Rd7 {[%clk 0:02:13.2]} 22. Bd3
{[%clk 0:00:55.4]} 22... Bh6 {[%clk 0:02:08.7]} 23. Kf2 {[%clk 0:00:48.1]} 23...
Nf6 {[%clk 0:02:02.8]} 24. Ke2 {[%clk 0:00:46.1]} 24... Bf4 {[%clk 0:01:50.3]}
25. Rh1 {[%clk 0:00:30.2]} 25... Rdc7 {[%clk 0:01:49.8]} 26. b3 {[%clk
0:00:28.8]} 26... b5 {[%clk 0:01:42.6]} 27. Na5 {[%clk 0:00:28.4]} 27... Rc3
{[%clk 0:01:42.6]} 28. Nc6 {[%clk 0:00:23.5]} 28... Re8 {[%clk 0:01:41.4]} 29.
Rh3 {[%clk 0:00:21.4]} 29... Nxd5 {[%clk 0:01:40.1]} 30. g3 {[%clk 0:00:16.5]}
30... Bxg3 {[%clk 0:01:39]} 31. Rxg3 {[%clk 0:00:14.4]} 31... Nf4+ {[%clk
0:01:39.2]} 32. Kd2 {[%clk 0:00:14.1]} 32... Rxd3+ {[%clk 0:01:36.9]} 33. Kc2
{[%clk 0:00:14.4]} 33... Rc3+ {[%clk 0:01:37.3]} 34. Kd2 {[%clk 0:00:13.4]}
34... Rxc6 {[%clk 0:01:38.2]} 0-1

[Event "Late-Titled-Tuesday-Blitz-May-28-2024"]
[Site "Chess.com"]
[Date "2024.05.28"]
[Round "1"]
[White "tgpgoat"]
[Black "SantoBlue"]
[Result "0-1"]
[WhiteElo "2516"]
[BlackElo "2980"]
[TimeControl "180+1"]
[EndTime "14:05:31 PDT"]
[Termination "SantoBlue won by resignation"]

1. Nf3 {[%clk 0:02:27]} 1... Nf6 {[%clk 0:02:58.8]} 2. g3 {[%clk 0:02:27]} 2...
b6 {[%clk 0:02:59.2]} 3. Bg2 {[%clk 0:02:27.1]} 3... Bb7 {[%clk 0:03:00.1]} 4.
O-O {[%clk 0:02:25.1]} 4... g6 {[%clk 0:03:00.4]} 5. c4 {[%clk 0:02:24.1]} 5...
Bg7 {[%clk 0:03:00.4]} 6. Nc3 {[%clk 0:02:24.6]} 6... O-O {[%clk 0:03:00.6]} 7.
d4 {[%clk 0:02:23.9]} 7... Ne4 {[%clk 0:02:59.9]} 8. Qc2 {[%clk 0:02:17.6]} 8...
Nxc3 {[%clk 0:02:58.6]} 9. Qxc3 {[%clk 0:02:17.2]} 9... c5 {[%clk 0:02:58.6]}
10. Be3 {[%clk 0:02:16]} 10... Nc6 {[%clk 0:02:54.4]} 11. Qd2 {[%clk 0:02:15.3]}
11... d6 {[%clk 0:02:42.4]} 12. Rfd1 {[%clk 0:02:13.5]} 12... Na5 {[%clk
0:02:34.6]} 13. b3 {[%clk 0:02:10.8]} 13... Qc7 {[%clk 0:02:29.5]} 14. Bh6
{[%clk 0:02:05.2]} 14... e5 {[%clk 0:02:20]} 15. Bxg7 {[%clk 0:02:03.7]} 15...
Kxg7 {[%clk 0:02:19.4]} 16. dxe5 {[%clk 0:02:01.2]} 16... dxe5 {[%clk
0:02:20.3]} 17. Qc3 {[%clk 0:01:56.9]} 17... f6 {[%clk 0:02:19.5]} 18. h4 {[%clk
0:01:55.7]} 18... Rad8 {[%clk 0:02:17.3]} 19. e3 {[%clk 0:01:54.5]} 19... Be4
{[%clk 0:02:06.6]} 20. Ng5 {[%clk 0:01:18.9]} 20... Bf5 {[%clk 0:02:01]} 21. Ne4
{[%clk 0:01:01.4]} 21... Nc6 {[%clk 0:01:57.3]} 22. Qb2 {[%clk 0:00:58.2]} 22...
Ne7 {[%clk 0:01:52.2]} 23. Nc3 {[%clk 0:00:56.5]} 23... Bg4 {[%clk 0:01:48.2]}
24. Rxd8 {[%clk 0:00:55.1]} 24... Rxd8 {[%clk 0:01:49.1]} 25. Nd5 {[%clk
0:00:55.6]} 25... Nxd5 {[%clk 0:01:48.1]} 26. Bxd5 {[%clk 0:00:56.5]} 26... Qc8
{[%clk 0:01:43.3]} 27. Rc1 {[%clk 0:00:52.9]} 27... Qf5 {[%clk 0:01:37.2]} 28.
e4 {[%clk 0:00:48.3]} 28... Qh5 {[%clk 0:01:32.9]} 29. Qc3 {[%clk 0:00:44.3]}
29... g5 {[%clk 0:01:32.4]} 30. hxg5 {[%clk 0:00:35.8]} 30... Bf3 {[%clk
0:01:32.1]} 31. gxf6+ {[%clk 0:00:29]} 31... Kxf6 {[%clk 0:01:33]} 0-1

[Event "Late-Titled-Tuesday-Blitz-May-28-2024"]
[Site "Chess.com"]
[Date "2024.05.28"]
[Round "1"]
[White "DeTimmerman"]
[Black "TheLonePika"]
[Result "1-0"]
[WhiteElo "2749"]
[BlackElo "2426"]
[TimeControl "180+1"]
[EndTime "14:05:33 PDT"]
[Termination "DeTimmerman won by resignation"]

1. b4 {[%clk 0:03:00.9]} 1... e5 {[%clk 0:02:51.8]} 2. Bb2 {[%clk 0:03:00.8]}
2... Bxb4 {[%clk 0:02:50.9]} 3. Bxe5 {[%clk 0:03:01]} 3... Nf6 {[%clk
0:02:51.2]} 4. Nc3 {[%clk 0:03:01.3]} 4... Nc6 {[%clk 0:02:50.9]} 5. Bxf6 {[%clk
0:03:01.5]} 5... Qxf6 {[%clk 0:02:50.2]} 6. Nd5 {[%clk 0:03:02.4]} 6... Qd8
{[%clk 0:02:48.2]} 7. c4 {[%clk 0:03:02.5]} 7... O-O {[%clk 0:02:46.5]} 8. Nf3
{[%clk 0:03:02.8]} 8... Re8 {[%clk 0:02:44.2]} 9. e3 {[%clk 0:03:02.8]} 9... Bf8
{[%clk 0:02:43.1]} 10. Be2 {[%clk 0:03:03.1]} 10... g6 {[%clk 0:02:42.9]} 11.
O-O {[%clk 0:03:02.7]} 11... Bg7 {[%clk 0:02:43.2]} 12. d4 {[%clk 0:03:03.2]}
12... d6 {[%clk 0:02:40.3]} 13. Rb1 {[%clk 0:03:02.8]} 13... Ne7 {[%clk
0:02:31.6]} 14. Nf4 {[%clk 0:03:00.1]} 14... c6 {[%clk 0:02:26.6]} 15. Qb3
{[%clk 0:02:51.2]} 15... a5 {[%clk 0:02:17.7]} 16. a4 {[%clk 0:02:49.9]} 16...
Rb8 {[%clk 0:02:14.2]} 17. Qb6 {[%clk 0:02:36.2]} 17... Bf5 {[%clk 0:02:09.8]}
18. Bd3 {[%clk 0:02:33.9]} 18... Bg4 {[%clk 0:02:00.2]} 19. Qxd8 {[%clk
0:02:30.5]} 19... Rexd8 {[%clk 0:02:00.3]} 20. Rb6 {[%clk 0:02:30.3]} 20... Bxf3
{[%clk 0:01:57.5]} 21. gxf3 {[%clk 0:02:31.2]} 21... Nc8 {[%clk 0:01:57.9]} 22.
Rb3 {[%clk 0:02:29.4]} 22... b6 {[%clk 0:01:54.7]} 23. Rfb1 {[%clk 0:02:22.6]}
23... c5 {[%clk 0:01:49.5]} 24. dxc5 {[%clk 0:02:19.5]} 24... dxc5 {[%clk
0:01:50.4]} 25. Nd5 {[%clk 0:02:20]} 25... Rd6 {[%clk 0:01:46.6]} 26. f4 {[%clk
0:02:19.9]} 26... f5 {[%clk 0:01:42.8]} 27. Be2 {[%clk 0:02:17.9]} 27... Kf7
{[%clk 0:01:40.4]} 28. Bf3 {[%clk 0:02:17.9]} 28... Bf6 {[%clk 0:01:33.8]} 29.
Bg2 {[%clk 0:02:10.2]} 29... Bd8 {[%clk 0:01:34.3]} 30. Rb5 {[%clk 0:02:03.4]}
30... Ra8 {[%clk 0:01:17.9]} 31. Nxb6 {[%clk 0:01:44.3]} 31... Nxb6 {[%clk
0:01:16.1]} 32. Bxa8 {[%clk 0:01:43.9]} 32... Nxa8 {[%clk 0:01:16.1]} 33. Rxc5
{[%clk 0:01:44.4]} 33... Nb6 {[%clk 0:01:07.2]} 34. Rxa5 {[%clk 0:01:44.2]}
34... Nxc4 {[%clk 0:01:05.7]} 35. Ra7+ {[%clk 0:01:44.5]} 35... Ke6 {[%clk
0:01:01.7]} 36. Rc1 {[%clk 0:01:44.4]} 36... Na5 {[%clk 0:00:55.6]} 37. Rxh7
{[%clk 0:01:42.9]} 37... Bb6 {[%clk 0:00:51.1]} 38. h4 {[%clk 0:01:36.8]} 38...
Nb3 {[%clk 0:00:50.2]} 39. Rb1 {[%clk 0:01:36.3]} 39... Rd3 {[%clk 0:00:48.1]}
40. h5 {[%clk 0:01:36]} 40... gxh5 {[%clk 0:00:47.6]} 41. Rh6+ {[%clk
0:01:35.9]} 41... Kd5 {[%clk 0:00:44.9]} 42. Rxb6 {[%clk 0:01:36.8]} 42... h4
{[%clk 0:00:41.2]} 43. R6xb3 {[%clk 0:01:35.6]} 1-0